bitfinex/quotes_SOLUSD_20251030
["timestamp","ask_amount","ask_price","bid_price","bid_amount"]
[1761804742248,5.49925131,195.05,195.01,0.87]
[1761804743445,5.49925131,195.05,195.01,0.2]
[1761804743623,5.12664195,195.06,195.02,0.7]
[1761804743824,5.49899367,195.06,195.02,62.3]
[1761804744549,5.12664195,195.06,195.02,62.3]
[1761804744749,5.4987406,195.07,195.03,0.7]
[1761804744931,2.68194387,195.11,195.05,2.02194387]
[1761804745136,2.39429559,195.1,195.04,2.02194387]
[1761804745439,2.39429559,195.1,195.04,2.72194387]
[1761804746059,7.5199037,195.1,195.04,7.1490591]
[1761804746369,5.12533663,195.11,195.07,2.02194387]
[1761804746525,5.12533663,195.11,195.08,0.7]
[1761804746727,5.12508837,195.12,195.08,2.72194387]
[1761804746921,2.68194387,195.12,195.06,2.02194387]
[1761804747125,2.02194387,195.11,195.06,2.72194387]
[1761804747620,2.02194387,195.11,195.07,0.7]
[1761804748263,2.02194387,195.11,195.04,84.21394387]
[1761804748264,2.02194387,195.09,195.04,84.21394387]
[1761804748555,2.02194387,195.09,195.04,84.91394387]
[1761804748752,2.02194387,195.09,195.05,0.7]
[1761804748929,6.15792834,195.1,195.05,0.7]
[1761804749130,8.17987221,195.1,195.05,0.7]
[1761804749338,2.02194387,195.08,195.04,82.192]
[1761804749632,2.02194387,195.07,195.04,61.6]
[1761804749832,2.68194387,195.07,195.02,2.02194387]
[1761804750051,2.02194387,195.07,195.03,0.7]
[1761804750245,7.52055655,195.08,195.03,0.7]
[1761804750526,8.18055655,195.08,195.03,0.7]
[1761804750725,2.68194387,195.07,195.01,39.20188064]
[1761804750923,2.68194387,195.07,195.02,0.7]
[1761804751348,2.02194387,195.07,195.02,0.7]
[1761804751541,0.66,195.06,195.01,12.78194387]
[1761804751846,2.68194387,195.06,195.01,0.2]
[1761804752052,2.68194387,195.06,195.01,0.9]
[1761804752254,7.80874646,195.06,195.01,0.9]
[1761804753357,2.02194387,195.04,195.01,0.2]
[1761804753545,1.03235172,195.05,195.01,0.2]
[1761804753730,0.66,195.04,195.01,0.2]
[1761804754344,5.12741629,195.03,195.01,0.2]
[1761804755777,12.81656926,195.06,195.02,0.7]
[1761804755778,5.12667723,195.06,195.02,0.7]
[1761804756061,7.1486211,195.06,195.02,0.7]
[1761804756736,5.12667723,195.06,195.02,0.7]
[1761804756940,7.1486211,195.06,195.02,0.7]
[1761804757983,7.148353,195.07,195.02,5.82766366]
[1761804758266,7.808353,195.07,195.02,0.7]
[1761804758649,7.808353,195.07,195.03,0.7]
[1761804759638,7.148353,195.07,195.03,0.7]
[1761804761356,5.12640913,195.07,195.03,0.7]
[1761804762137,5.78640913,195.07,195.03,0.7]
[1761804762766,5.78640913,195.07,195.01,2.22194387]
[1761804762767,7.808353,195.07,195.01,2.22194387]
[1761804762986,7.808353,195.07,195.02,0.7]
[1761804763151,7.808353,195.07,195.02,62.3]
[1761804763661,2.02194387,195.06,195.03,0.7]
[1761804764178,7.14860377,195.06,195.03,0.7]
[1761804764581,5.1266599,195.06,195.03,0.7]
[1761804764872,7.52041437,195.08,195.03,0.7]
[1761804765042,8.18041437,195.08,195.03,0.7]
[1761804765244,0.66,195.07,195.03,0.7]
[1761804765978,7.80851593,195.07,195.03,0.7]
[1761804766152,5.12657206,195.07,195.03,0.7]
[1761804766353,5.49892378,195.07,195.03,0.7]
[1761804766853,0.37235172,195.07,195.03,5.82734814]
[1761804767053,0.66,195.06,195.03,62.3]
[1761804767388,2.02194387,195.04,195.03,61.6]
[1761804767872,2.02194387,195.05,195.03,62.3]
[1761804768078,7.14805398,195.08,195.04,0.7]
[1761804768378,5.12611011,195.08,195.04,0.7]
[1761804768570,7.80805398,195.08,195.03,62.3]
[1761804768879,7.80805398,195.08,195.04,0.7]
[1761804769353,7.14805398,195.08,195.04,0.7]
[1761804769954,8.1804057,195.08,195.04,0.7]
[1761804770669,2.02194387,195.06,195.03,61.6]
[1761804770889,2.02194387,195.06,195.03,62.3]
[1761804771059,3.05429559,195.07,195.03,62.3]
[1761804771252,2.39429559,195.07,195.03,61.6]
[1761804771475,2.02194387,195.07,195.03,62.3]
[1761804771656,2.02194387,195.07,195.03,61.6]
[1761804772077,2.02194387,195.07,195.04,0.7]
[1761804772276,7.14846858,195.07,195.02,0.7]
[1761804772980,2.02194387,195.03,195.01,0.2]
[1761804773187,2.39429559,195.02,195.01,0.2]
[1761804773883,1.06235172,195.04,195.01,0.2]
[1761804774081,2.02194387,195.03,195.01,0.2]
[1761804774286,5.50003093,195.02,195.01,0.2]
[1761804774490,7.5219748,195.02,195.01,0.2]
[1761804775101,2.02194387,195.02,195.01,0.2]
[1761804775409,2.02194387,195.03,195.01,0.2]
[1761804775701,2.02194387,195.02,195.01,0.2]
[1761804776273,5.12767921,195.02,195.01,0.2]
[1761804776496,7.14962308,195.02,195.01,0.2]
[1761804778423,5.12741629,195.03,195.01,0.2]
[1761804778606,17.3344718,195.08,195.01,0.9]
[1761804778786,2.02194387,195.06,195.01,0.9]
[1761804778978,2.39429559,195.06,195.02,0.7]
[1761804779600,2.02194387,195.06,195.02,0.7]
[1761804779825,7.52066048,195.07,195.02,0.7]
[1761804780307,0.69,195.06,195.02,0.7]
[1761804780504,5.12689054,195.05,195.02,0.7]
[1761804781082,5.12689054,195.05,195.01,0.2]
[1761804781277,2.02194387,195.02,195.01,0.2]
[1761804781495,22.61394387,195.02,195.01,1e-08]
[1761804781690,23.30394387,195.02,195.01,1e-08]
[1761804782212,25.32588774,195.02,195.01,1e-08]
[1761804782413,28.7801007,195.02,195.01,1e-08]
[1761804782615,33.90777991,195.02,195.01,1e-08]
[1761804783302,46.72697794,195.02,194.97,0.2]
[1761804783506,8.08777548,195.0,194.97,0.2]
[1761804783811,0.37235172,194.99,194.97,0.2]
[1761804784112,0.69,194.98,194.97,0.2]
[1761804785000,5.81873115,194.98,194.97,0.2]
[1761804786229,46.30615864,194.98,194.92,0.2]
[1761804786518,2.02194387,194.93,194.92,0.2]
[1761804786892,0.37235172,194.97,194.92,0.2]
[1761804786893,7.15194054,194.94,194.92,0.2]
[1761804787100,5.12999667,194.94,194.92,0.9]
[1761804787296,7.52429226,194.94,194.92,0.9]
[1761804787633,2.02194387,194.93,194.92,0.2]
[1761804787929,0.69,194.93,194.92,0.2]
[1761804788089,5.50234839,194.94,194.92,0.2]
[1761804788293,2.02194387,194.93,194.92,0.2]
[1761804788589,2.71194387,194.93,194.92,0.2]
[1761804788816,20.73070861,194.93,194.88,0.2]
[1761804789000,8.08777548,194.9,194.88,0.2]
[1761804789324,2.39429559,194.89,194.86,0.2]
[1761804789512,2.02194387,194.87,194.82,0.2]
[1761804789821,2.02194387,194.84,194.82,0.2]
[1761804790219,3.07429559,194.83,194.82,0.2]
[1761804790925,28.79897536,194.83,194.82,0.2]
[1761804791104,28.94113693,194.83,194.82,0.2]
[1761804791437,28.94113693,194.83,194.67,0.7]
[1761804791438,20.592,194.8,194.67,0.7]
[1761804791641,5.07173494,194.7,194.67,0.7]
[1761804792014,0.37235172,194.75,194.67,0.7]
[1761804792194,0.37235172,194.75,194.67,5.77173494]
[1761804792392,0.37235172,194.78,194.67,0.7]
[1761804792618,5.07173494,194.72,194.68,0.7]
[1761804792912,0.37235172,194.78,194.68,5.83646193]
[1761804793116,5.50639557,194.78,194.69,0.67]
[1761804793319,5.07173494,194.72,194.69,0.67]
[1761804793494,0.37235172,194.73,194.69,0.67]
[1761804794023,0.68,194.76,194.69,0.67]
[1761804794024,0.37235172,194.76,194.69,0.67]
[1761804794214,0.37235172,194.76,194.69,5.74173494]
[1761804794392,5.07173494,194.75,194.69,0.67]
[1761804794599,5.07173494,194.74,194.7,0.67]
[1761804794938,5.07173494,194.75,194.7,0.67]
[1761804795110,0.37235172,194.76,194.7,10.87778004]
[1761804795431,5.07173494,194.78,194.73,5.07173494]
[1761804795639,5.44408666,194.79,194.74,5.07173494]
[1761804795922,5.44408666,194.79,194.75,0.67]
[1761804796121,5.07173494,194.78,194.75,0.67]
[1761804796327,0.37235172,194.79,194.75,0.67]
[1761804796624,0.37235172,194.83,194.77,5.07173494]
[1761804796823,0.68,194.89,194.79,5.07173494]
[1761804797018,5.07173494,194.85,194.79,10.2054325]
[1761804797218,5.07173494,194.86,194.8,5.74173494]
[1761804797423,0.37235172,194.87,194.83,5.07173494]
[1761804797727,0.37235172,194.87,194.81,0.67]
[1761804797728,5.07173494,194.9,194.84,5.07173494]
[1761804797934,0.37235172,194.89,194.85,0.67]
[1761804798226,0.37235172,194.92,194.86,5.07173494]
[1761804798424,0.37235172,194.92,194.87,0.67]
[1761804798425,5.44408666,194.92,194.87,0.67]
[1761804798634,5.07173494,194.91,194.87,0.67]
[1761804799005,5.44408666,194.9,194.82,20.592]
[1761804799215,5.07173494,194.86,194.83,0.67]
[1761804799528,5.07173494,194.88,194.83,0.67]
[1761804799732,5.07173494,194.88,194.83,5.74173494]
[1761804800124,5.07173494,194.89,194.84,0.67]
[1761804800325,5.44408666,194.88,194.84,0.67]
[1761804800840,5.07173494,194.86,194.84,0.67]
[1761804801010,5.07173494,194.86,194.82,0.67]
[1761804801628,5.07173494,194.83,194.79,0.67]
[1761804801935,5.07173494,194.82,194.79,0.67]
[1761804802346,5.07173494,194.82,194.77,20.592]
[1761804802657,5.07173494,194.78,194.74,0.69]
[1761804803156,5.07173494,194.78,194.72,5.76173494]
[1761804803157,5.07173494,194.75,194.72,5.76173494]
[1761804803317,5.07173494,194.73,194.69,0.69]
[1761804803517,5.07173494,194.72,194.69,21.282]
[1761804803716,5.07173494,194.72,194.69,0.69]
[1761804803925,5.07173494,194.71,194.69,0.69]
[1761804804218,0.37235172,194.77,194.69,0.69]
[1761804804422,5.07173494,194.74,194.69,0.69]
[1761804804649,5.07173494,194.72,194.69,0.69]
[1761804805329,7.55551794,194.72,194.69,0.69]
[1761804806027,7.55551794,194.71,194.66,9.78882769]
[1761804806241,7.55551794,194.71,194.66,10.47882769]
[1761804806449,7.55551794,194.7,194.67,0.69]
[1761804807027,5.13581165,194.72,194.67,0.69]
[1761804807228,7.55551794,194.71,194.67,0.69]
[1761804808150,13.06371598,194.71,194.67,0.69]
[1761804808650,7.92786966,194.71,194.67,0.69]
[1761804808835,7.92786966,194.73,194.67,13.3823996]
[1761804809032,0.37235172,194.74,194.67,5.82688166]
[1761804809238,7.55551794,194.73,194.68,0.69]
[1761804809543,0.37235172,194.72,194.68,0.69]
[1761804809921,0.37235172,194.72,194.68,8.24551794]
[1761804810123,0.37235172,194.75,194.7,12.69162477]
[1761804810362,0.37235172,194.75,194.7,7.55551794]
[1761804810536,0.37235172,194.75,194.71,0.69]
[1761804810742,7.92786966,194.75,194.71,0.69]
[1761804811438,13.06268352,194.75,194.71,0.69]
[1761804811825,0.37235172,194.75,194.71,0.69]
[1761804812288,5.50719221,194.75,194.71,0.69]
[1761804812648,0.37235172,194.75,194.71,8.24551794]
[1761804813281,0.37235172,194.75,194.72,0.69]
[1761804813457,5.50714337,194.75,194.72,0.69]
[1761804813645,0.37235172,194.75,194.72,0.69]
[1761804814086,5.50728647,194.75,194.72,0.69]
[1761804814580,0.37235172,194.75,194.72,0.69]
[1761804815691,7.55551794,194.76,194.72,0.69]
[1761804816175,5.50658566,194.78,194.72,0.69]
[1761804816359,7.55551794,194.76,194.72,0.69]
[1761804816562,0.37235172,194.75,194.72,0.69]
[1761804816740,7.92786966,194.77,194.72,0.69]
[1761804816940,0.37235172,194.77,194.72,0.69]
[1761804817157,12.68975188,194.78,194.72,8.24551794]
[1761804817353,12.68975188,194.78,194.73,7.55551794]
[1761804817557,0.37235172,194.8,194.75,7.55551794]
[1761804817770,25.65613765,194.89,194.73,5.82518141]
[1761804817771,5.13215293,194.85,194.74,10.62098926]
[1761804818056,0.37235172,194.84,194.8,7.55551794]
[1761804818269,7.55551794,194.86,194.81,8.24551794]
[1761804818570,0.37235172,194.87,194.83,7.55551794]
[1761804818780,7.92786966,194.87,194.82,0.69]
[1761804819274,0.37235172,194.87,194.83,7.55551794]
[1761804819572,5.13166167,194.87,194.83,7.55551794]
[1761804819867,0.37235172,194.86,194.8,5.13326043]
[1761804820168,7.92786966,194.86,194.8,9.78882769]
[1761804820468,7.92786966,194.87,194.82,7.55551794]
[1761804820642,7.55551794,194.88,194.83,0.69]
[1761804820847,0.37235172,194.87,194.83,0.69]
[1761804821569,7.55551794,194.88,194.83,0.69]
[1761804821873,0.37235172,194.87,194.83,0.69]
[1761804823570,13.05975467,194.87,194.81,7.55551794]
[1761804823758,7.55551794,194.86,194.81,8.24551794]
[1761804823958,7.55551794,194.86,194.82,0.69]
[1761804824359,7.55551794,194.83,194.71,9.78882769]
[1761804824559,7.55551794,194.77,194.72,7.55551794]
[1761804824757,0.68,194.85,194.72,7.55551794]
[1761804824758,7.92786966,194.76,194.72,0.69]
[1761804825466,7.92786966,194.76,194.7,33.97361015]
[1761804825666,12.69000405,194.77,194.71,13.38134616]
[1761804825869,7.92786966,194.76,194.71,13.38134616]
[1761804826176,5.13448611,194.77,194.72,0.69]
[1761804826177,13.06235577,194.77,194.72,0.69]
[1761804826674,7.92786966,194.77,194.72,8.24551794]
[1761804826974,0.37235172,194.76,194.72,8.24551794]
[1761804827183,7.55551794,194.77,194.73,0.69]
[1761804827485,0.37235172,194.76,194.73,0.69]
[1761804827699,7.92786966,194.76,194.73,0.69]
[1761804828256,0.37235172,194.76,194.73,0.69]
[1761804828464,12.68978069,194.77,194.73,0.69]
[1761804828856,0.37235172,194.76,194.73,0.69]
[1761804829061,7.55551794,194.77,194.73,0.69]
[1761804829258,0.37235172,194.78,194.73,8.24551794]
[1761804829577,7.55551794,194.78,194.73,13.38060509]
[1761804829787,7.55551794,194.8,194.75,7.55551794]
[1761804829991,0.37235172,194.81,194.76,0.69]
[1761804829992,7.55551794,194.81,194.76,0.69]
[1761804830284,7.55551794,194.81,194.75,7.55551794]
[1761804830285,7.55551794,194.79,194.73,0.14216157]
[1761804830585,7.55551794,194.79,194.74,8.24551794]
[1761804831083,0.37235172,194.78,194.75,0.69]
[1761804831276,7.92786966,194.78,194.75,0.69]
[1761804831987,7.55551794,194.79,194.75,0.69]
[1761804833378,0.37235172,194.8,194.75,0.69]
[1761804833682,0.37235172,194.8,194.75,5.82474648]
[1761804833683,7.55551794,194.79,194.75,5.82474648]
[1761804833884,7.92786966,194.79,194.75,5.82474648]
[1761804834068,7.92786966,194.79,194.76,0.69]
[1761804834883,7.92786966,194.79,194.74,28.83751794]
[1761804835073,7.92786966,194.79,194.75,0.69]
[1761804835272,7.92786966,194.8,194.75,0.69]
[1761804835468,7.92786966,194.8,194.76,5.13452454]
[1761804835789,7.55551794,194.81,194.76,12.69004248]
[1761804835966,7.92786966,194.81,194.77,0.69]
[1761804836478,0.37235172,194.81,194.77,0.69]
[1761804836780,4.11626487,194.84,194.8,7.55551794]
[1761804836781,0.37235172,194.84,194.8,7.55551794]
[1761804837088,5.50424128,194.86,194.81,0.69]
[1761804837383,13.05995518,194.86,194.81,8.24551794]
[1761804837591,13.05995518,194.86,194.81,0.69]
[1761804837758,13.05995518,194.86,194.8,12.68891845]
[1761804838086,13.05995518,194.86,194.82,0.69]
[1761804838261,13.05995518,194.86,194.8,12.68891845]
[1761804838458,13.05995518,194.86,194.8,13.37891845]
[1761804838653,5.50443724,194.86,194.8,13.37891845]
[1761804838877,12.68774074,194.85,194.8,13.37891845]
[1761804839282,12.68774074,194.85,194.81,0.69]
[1761804839457,7.55551794,194.82,194.78,0.69]
[1761804839656,0.37235172,194.84,194.78,0.69]
[1761804839657,7.92786966,194.81,194.78,0.69]
[1761804840385,7.55551794,194.8,194.77,20.592]
[1761804840585,8.22551794,194.8,194.77,20.592]
[1761804840764,7.55551794,194.79,194.77,20.592]
[1761804841277,7.55551794,194.8,194.75,25.72676056]
[1761804841485,7.55551794,194.8,194.75,26.41676056]
[1761804841779,7.55551794,194.8,194.76,0.69]
[1761804841984,1.04235172,194.82,194.76,0.69]
[1761804842178,0.37235172,194.82,194.76,8.24551794]
[1761804842382,7.55551794,194.81,194.76,8.24551794]
[1761804842973,7.55551794,194.81,194.76,13.37996443]
[1761804843178,5.1332592,194.81,194.76,13.37996443]
[1761804843492,5.1332592,194.81,194.77,0.69]
[1761804843669,12.68877714,194.81,194.77,0.69]
[1761804844185,0.37235172,194.8,194.77,0.69]
[1761804844884,7.92786966,194.8,194.75,20.592]
[1761804845073,13.06135162,194.8,194.76,0.69]
[1761804847092,5.50583368,194.8,194.76,0.69]
[1761804847273,13.06135162,194.8,194.76,0.69]
[1761804848874,7.55551794,194.81,194.76,5.82445146]
[1761804849390,7.55551794,194.81,194.77,0.69]
[1761804849576,5.5055425,194.82,194.77,0.69]
[1761804849777,13.06106044,194.82,194.77,0.69]
[1761804850895,13.06106044,194.82,194.77,5.8242101]
[1761804851280,13.06106044,194.82,194.78,0.69]
[1761804851996,0.37235172,194.85,194.8,7.55551794]
[1761804852202,12.6874075,194.86,194.8,7.55551794]
[1761804852499,0.37235172,194.85,194.8,7.55551794]
[1761804852703,7.55551794,194.84,194.79,8.24551794]
[1761804852897,7.55551794,194.84,194.8,0.69]
[1761804853105,7.55551794,194.84,194.77,0.69]
[1761804853106,7.55551794,194.81,194.77,0.69]
[1761804853404,3.16796441,194.78,194.73,0.69]
[1761804853575,3.16796441,194.77,194.73,0.69]
[1761804854003,3.16796441,194.78,194.73,0.69]
[1761804854394,0.67,194.81,194.73,0.69]
[1761804854579,3.16796441,194.78,194.73,5.82518917]
[1761804854779,5.13373376,194.79,194.73,8.99315358]
[1761804854998,8.30169817,194.79,194.74,0.69]
[1761804855299,7.92158826,194.8,194.75,7.54923654]
[1761804855483,7.92158826,194.81,194.76,0.69]
[1761804855682,5.50561781,194.81,194.76,8.23923654]
[1761804855896,0.37235172,194.81,194.76,8.23923654]
[1761804856196,0.37235172,194.81,194.77,0.69]
[1761804856574,12.68223053,194.82,194.77,5.82419392]
[1761804857077,5.13268636,194.83,194.78,0.69]
[1761804857282,13.05402892,194.84,194.79,7.54923654]
[1761804857690,13.05402892,194.84,194.8,0.69]
[1761804858210,7.54923654,194.83,194.78,0.69]
[1761804858381,7.92158826,194.82,194.78,0.69]
[1761804858583,0.37235172,194.81,194.78,21.282]
[1761804858798,7.92158826,194.81,194.78,0.69]
[1761804859000,0.37235172,194.81,194.79,0.69]
[1761804859483,0.37235172,194.83,194.79,0.69]
[1761804859782,7.92158826,194.83,194.79,0.69]
[1761804859986,0.37235172,194.83,194.79,0.69]
[1761804860185,5.50510318,194.83,194.79,0.69]
[1761804860400,13.05433972,194.83,194.77,7.54923654]
[1761804860606,13.05433972,194.83,194.77,13.37349326]
[1761804860802,5.50510318,194.83,194.78,0.69]
[1761804861108,13.05433972,194.83,194.78,0.69]
[1761804862589,13.05433972,194.83,194.78,8.23923654]
[1761804862796,13.05433972,194.83,194.78,13.37311943]
[1761804863011,13.05433972,194.83,194.79,0.7]
[1761804864895,7.54923654,194.82,194.79,0.7]
[1761804865092,7.54923654,194.82,194.77,0.7]
[1761804865289,5.0673103,194.82,194.77,0.7]
[1761804865890,10.20035118,194.82,194.77,0.7]
[1761804866499,10.20035118,194.82,194.77,5.83424839]
[1761804866784,10.20035118,194.82,194.77,0.7]
[1761804866994,10.20035118,194.82,194.78,0.7]
[1761804867817,5.0673103,194.79,194.75,62.3]
[1761804868013,5.0673103,194.77,194.75,61.6]
[1761804868537,5.7273103,194.77,194.75,61.6]
[1761804868816,5.0673103,194.76,194.75,61.6]
[1761804869125,10.57365935,194.78,194.75,61.6]
[1761804870017,10.57365935,194.78,194.75,62.3]
[1761804870211,5.50634905,194.78,194.75,61.6]
[1761804870418,5.0673103,194.83,194.77,5.0673103]
[1761804870597,5.50506272,194.83,194.78,5.0673103]
[1761804870796,10.57237302,194.83,194.78,5.7673103]
[1761804871099,10.57237302,194.83,194.78,0.7]
[1761804871492,11.23237302,194.83,194.78,0.7]
[1761804871916,5.43966202,194.83,194.78,0.7]
[1761804872103,5.43966202,194.83,194.78,5.83396568]
[1761804872423,5.0673103,194.82,194.78,0.7]
[1761804872595,0.37235172,194.81,194.78,0.7]
[1761804872798,5.43966202,194.83,194.78,5.83392105]
[1761804873004,10.5724322,194.83,194.78,0.7]
[1761804873203,10.5724322,194.83,194.79,0.7]
[1761804873594,5.50514542,194.83,194.79,0.7]
[1761804874318,5.50514542,194.83,194.77,67.3673103]
[1761804874319,10.57245572,194.83,194.77,67.3673103]
[1761804874504,5.0673103,194.82,194.78,0.7]
[1761804874707,10.57245572,194.83,194.78,0.7]
[1761804875127,5.43966202,194.83,194.78,5.7673103]
[1761804875330,10.57237657,194.83,194.78,5.7673103]
[1761804875498,10.57237657,194.83,194.79,0.7]
[1761804876835,5.43966202,194.83,194.79,0.7]
[1761804877303,7.53169238,194.83,194.79,0.7]
[1761804880436,7.53169238,194.83,194.79,61.6]
[1761804880437,2.02657472,194.81,194.79,61.6]
[1761804881031,2.02657472,194.8,194.79,61.6]
[1761804882931,7.16004494,194.8,194.79,61.6]
[1761804883229,7.82004494,194.8,194.73,0.7]
[1761804883542,2.02657472,194.78,194.74,0.7]
[1761804884197,2.02657472,194.76,194.71,21.292]
[1761804884401,2.02657472,194.76,194.72,0.7]
[1761804884928,2.39892644,194.79,194.73,7.16189028]
[1761804885237,0.37235172,194.79,194.74,2.02657472]
[1761804885412,0.37235172,194.79,194.74,2.72657472]
[1761804885612,0.37235172,194.79,194.75,0.7]
[1761804885817,2.02657472,194.78,194.73,0.7]
[1761804886010,2.02657472,194.78,194.74,0.7]
[1761804887137,2.02657472,194.78,194.74,5.83501762]
[1761804887635,7.16059116,194.78,194.74,0.7]
[1761804889220,7.16059116,194.78,194.74,62.3]
[1761804889624,0.37235172,194.77,194.74,62.3]
[1761804889937,2.02657472,194.78,194.75,0.7]
[1761804890138,7.53292441,194.78,194.75,0.7]
[1761804890725,5.50634969,194.78,194.75,0.7]
[1761804891137,5.50634969,194.78,194.74,61.6]
[1761804891138,8.19292441,194.78,194.74,61.6]
[1761804891521,2.02657472,194.76,194.74,61.6]
[1761804891722,2.39892644,194.76,194.74,61.6]
[1761804891937,2.39892644,194.76,194.71,21.292]
[1761804892140,2.39892644,194.76,194.72,0.7]
[1761804892845,2.02657472,194.75,194.7,0.67]
[1761804893022,2.02657472,194.75,194.69,9.78882769]
[1761804893218,7.16157854,194.75,194.71,0.67]
[1761804894660,2.02657472,194.76,194.71,0.67]
[1761804895157,0.37235172,194.75,194.71,0.67]
[1761804895679,0.37235172,194.75,194.71,7.83234451]
[1761804895971,2.39892644,194.78,194.72,2.02657472]
[1761804896131,2.39892644,194.78,194.72,2.69657472]
[1761804896465,2.39892644,194.78,194.73,0.67]
[1761804896759,2.02657472,194.78,194.73,0.67]
[1761804896929,7.53266162,194.79,194.73,2.69657472]
[1761804897260,7.53266162,194.79,194.74,7.83142569]
[1761804897464,0.37235172,194.79,194.75,0.67]
[1761804897669,5.50610636,194.79,194.75,0.67]
[1761804899738,5.86041089,194.8,194.75,2.69657472]
[1761804899953,2.02657472,194.78,194.75,0.67]
[1761804900170,19.01961102,194.8,194.75,0.67]
[1761804900372,0.37235172,194.8,194.76,0.67]
[1761804900580,10.99263677,194.82,194.77,2.02657472]
[1761804900863,7.5320862,194.82,194.73,35.51605537]
[1761804901069,2.02657472,194.74,194.69,0.67]
[1761804901271,2.02657472,194.72,194.69,0.67]
[1761804901772,2.02657472,194.7,194.67,0.67]
[1761804901944,2.02657472,194.71,194.65,2.02657472]
[1761804902268,2.02657472,194.71,194.66,0.67]
[1761804902670,2.39892644,194.7,194.66,0.67]
[1761804902968,2.02657472,194.7,194.66,0.67]
[1761804903178,2.39892644,194.69,194.66,0.67]
[1761804903649,2.02657472,194.68,194.64,0.67]
[1761804904368,3.07892644,194.67,194.62,0.67]
[1761804904551,2.39892644,194.67,194.62,0.67]
[1761804904761,2.02657472,194.65,194.6,0.67]
[1761804904962,2.02657472,194.63,194.6,0.67]
[1761804905284,2.02657472,194.64,194.6,0.67]
[1761804905485,2.39892644,194.65,194.6,5.80870405]
[1761804905665,2.39892644,194.65,194.61,0.67]
[1761804906060,0.68,194.68,194.61,0.67]
[1761804906061,1.05235172,194.68,194.61,0.67]
[1761804906252,2.02657472,194.65,194.61,0.67]
[1761804906451,0.37235172,194.64,194.61,0.67]
[1761804906875,2.02657472,194.62,194.58,0.1]
[1761804907050,2.02657472,194.62,194.58,0.77]
[1761804907389,2.39892644,194.62,194.58,0.77]
[1761804907568,2.02657472,194.62,194.58,0.77]
[1761804907762,7.5369845,194.63,194.58,0.77]
[1761804908086,7.5369845,194.63,194.58,0.1]
[1761804908087,2.02657472,194.6,194.58,0.1]
[1761804908370,0.37235172,194.61,194.58,0.1]
[1761804908773,2.39892644,194.61,194.58,0.77]
[1761804909072,0.37235172,194.61,194.58,0.1]
[1761804909282,2.02657472,194.59,194.58,0.1]
[1761804909453,2.39892644,194.59,194.58,0.1]
[1761804909655,0.37235172,194.6,194.58,0.1]
[1761804909881,3.07892644,194.65,194.59,2.02657472]
[1761804910066,7.16349135,194.67,194.62,2.02657472]
[1761804910269,7.53584307,194.67,194.62,2.02657472]
[1761804910471,7.53584307,194.67,194.62,2.69657472]
[1761804910472,5.50926835,194.67,194.62,2.69657472]
[1761804910781,2.70657472,194.66,194.6,0.67]
[1761804910958,2.39892644,194.65,194.6,0.67]
[1761804911159,0.37235172,194.65,194.6,5.8086943]
[1761804911375,0.37235172,194.65,194.6,7.83526902]
[1761804911563,2.39892644,194.68,194.62,2.02657472]
[1761804911880,7.53477672,194.71,194.63,20.592]
[1761804912080,2.02657472,194.67,194.62,9.78882769]
[1761804912379,2.02657472,194.67,194.62,0.67]
[1761804912583,0.37235172,194.69,194.63,2.69657472]
[1761804912584,2.39892644,194.69,194.63,2.69657472]
[1761804912755,2.39892644,194.69,194.63,0.67]
[1761804912952,2.39892644,194.69,194.63,2.69657472]
[1761804913170,5.13663447,194.68,194.63,2.69657472]
[1761804913483,0.37235172,194.69,194.64,2.69657472]
[1761804913685,2.02657472,194.67,194.6,20.592]
[1761804913891,2.02657472,194.65,194.6,20.592]
[1761804914387,2.39892644,194.66,194.6,23.31857472]
[1761804914590,2.02657472,194.65,194.6,26.43065823]
[1761804915283,7.16426481,194.64,194.6,0.7]
[1761804915795,7.16402935,194.65,194.6,5.83872264]